[Event "Live Chess"]
[Site "Chess.com"]
[Date "2023.05.20"]
[Round "-"]
[White "CheckThis4"]
[Black "AttackingSnowLeopard"]
[Result "1-0"]
[WhiteElo "2549"]
[BlackElo "2116"]
[TimeControl "300"]
[EndTime "11:03:33 PDT"]
[Termination "CheckThis4 won by resignation"]

1. d4 {[%clk 0:04:57.4]} 1... d5 {[%clk 0:04:57.7]} 2. c4 {[%clk 0:04:54.1]}
2... c6 {[%clk 0:04:56]} 3. Nc3 {[%clk 0:04:51.4]} 3... Nf6 {[%clk 0:04:54.4]}
4. Nf3 {[%clk 0:04:49.1]} 4... dxc4 {[%clk 0:04:53.3]} 5. a4 {[%clk 0:04:42.8]}
5... Bf5 {[%clk 0:04:51.4]} 6. e3 {[%clk 0:04:40.2]} 6... e6 {[%clk 0:04:49.1]}
7. Bxc4 {[%clk 0:04:38.6]} 7... Bb4 {[%clk 0:04:48.7]} 8. O-O {[%clk 0:04:35.8]}
8... Nbd7 {[%clk 0:04:48.1]} 9. Bd3 {[%clk 0:04:20.4]} 9... Bxd3 {[%clk
0:04:38.5]} 10. Qxd3 {[%clk 0:04:19.2]} 10... O-O {[%clk 0:04:38.2]} 11. Rd1
{[%clk 0:04:02.8]} 11... Qe7 {[%clk 0:04:31.5]} 12. e4 {[%clk 0:04:00.5]} 12...
e5 {[%clk 0:04:27.4]} 13. Bg5 {[%clk 0:03:55.9]} 13... exd4 {[%clk 0:04:11.6]}
14. Nxd4 {[%clk 0:03:48.7]} 14... Bxc3 {[%clk 0:03:47.8]} 15. bxc3 {[%clk
0:03:36.9]} 15... Qxe4 {[%clk 0:03:41.3]} 16. Qf1 {[%clk 0:03:21.5]} 16... Qg4
{[%clk 0:03:25.5]} 17. Be3 {[%clk 0:03:17.9]} 17... Nd5 {[%clk 0:03:20.8]} 18.
Bd2 {[%clk 0:03:12.7]} 18... N7f6 {[%clk 0:03:12]} 19. h3 {[%clk 0:03:10.8]}
19... Qg6 {[%clk 0:03:07.8]} 20. Rab1 {[%clk 0:03:03.3]} 20... Rab8 {[%clk
0:03:01.2]} 21. a5 {[%clk 0:03:00.2]} 21... Ne4 {[%clk 0:02:58.1]} 22. Qd3
{[%clk 0:02:42.9]} 22... Nxd2 {[%clk 0:02:41.6]} 23. Qxd2 {[%clk 0:02:40.9]}
23... a6 {[%clk 0:02:41]} 24. c4 {[%clk 0:02:27.7]} 24... Nf6 {[%clk 0:02:37.8]}
25. Nf3 {[%clk 0:02:26.9]} 25... h6 {[%clk 0:02:27.3]} 26. Qe3 {[%clk
0:02:18.4]} 26... Qe4 {[%clk 0:02:19.6]} 27. Qc3 {[%clk 0:01:57.9]} 27... Qe7
{[%clk 0:02:00.9]} 28. Re1 {[%clk 0:01:55.1]} 28... Qc7 {[%clk 0:01:57.4]} 29.
Nd4 {[%clk 0:01:49.3]} 29... Rfe8 {[%clk 0:01:48.9]} 30. Nf5 {[%clk 0:01:47.4]}
30... Rxe1+ {[%clk 0:01:30.7]} 31. Rxe1 {[%clk 0:01:45.6]} 31... Qf4 {[%clk
0:01:26.8]} 32. Re5 {[%clk 0:01:32.1]} 32... Rd8 {[%clk 0:01:12.7]} 33. g3
{[%clk 0:01:27]} 33... Qf3 {[%clk 0:01:07.2]} 34. Qxf3 {[%clk 0:01:24.4]} 1-0

[Event "Live Chess"]
[Site "Chess.com"]
[Date "2023.05.20"]
[Round "-"]
[White "Bunny55"]
[Black "zdanevych"]
[Result "0-1"]
[WhiteElo "962"]
[BlackElo "1539"]
[TimeControl "300"]
[EndTime "11:03:35 PDT"]
[Termination "zdanevych won by resignation"]

1. e4 {[%clk 0:04:53.3]} 1... c5 {[%clk 0:04:59]} 2. Nf3 {[%clk 0:04:51.6]} 2...
e6 {[%clk 0:04:55.8]} 3. d4 {[%clk 0:04:46.5]} 3... cxd4 {[%clk 0:04:54.1]} 4.
Nxd4 {[%clk 0:04:44.6]} 4... Nc6 {[%clk 0:04:54]} 5. Be3 {[%clk 0:04:40.3]} 5...
e5 {[%clk 0:04:52.5]} 6. Nb5 {[%clk 0:04:37]} 6... a6 {[%clk 0:04:49.9]} 7. Nd6+
{[%clk 0:04:35]} 7... Bxd6 {[%clk 0:04:48.1]} 8. Qxd6 {[%clk 0:04:34.9]} 8...
Nge7 {[%clk 0:04:43.9]} 9. Nc3 {[%clk 0:04:31.1]} 9... O-O {[%clk 0:04:42.5]}
10. O-O-O {[%clk 0:04:28.2]} 10... b5 {[%clk 0:04:35.3]} 11. Qd2 {[%clk
0:04:22.3]} 11... d6 {[%clk 0:04:32.5]} 12. Bg5 {[%clk 0:04:19.7]} 12... f6
{[%clk 0:04:24.7]} 13. Bh4 {[%clk 0:04:18.1]} 13... Nd4 {[%clk 0:04:21.3]} 14.
f3 {[%clk 0:04:12]} 14... Be6 {[%clk 0:04:17.8]} 15. Nd5 {[%clk 0:04:08.8]}
15... Nxd5 {[%clk 0:04:15.1]} 16. exd5 {[%clk 0:04:07.4]} 16... Bxd5 {[%clk
0:04:15]} 17. Be2 {[%clk 0:04:00.1]} 17... Nxe2+ {[%clk 0:04:12]} 18. Qxe2
{[%clk 0:03:47.1]} 18... Bc4 {[%clk 0:04:10.2]} 19. Qd2 {[%clk 0:03:44.4]} 19...
a5 {[%clk 0:03:49.8]} 20. Qxd6 {[%clk 0:03:41.5]} 20... Qxd6 {[%clk 0:03:49]}
21. Rxd6 {[%clk 0:03:40.2]} 21... Bxa2 {[%clk 0:03:48.3]} 22. Rhd1 {[%clk
0:03:36.1]} 22... Bc4 {[%clk 0:03:42.5]} 23. Rd7 {[%clk 0:03:32.2]} 23... a4
{[%clk 0:03:32.5]} 24. Rb7 {[%clk 0:03:18.7]} 24... a3 {[%clk 0:03:31.1]} 25.
bxa3 {[%clk 0:03:13.8]} 25... Rxa3 {[%clk 0:03:31]} 26. Kb2 {[%clk 0:03:11.9]}
26... Ra2+ {[%clk 0:03:29.6]} 27. Kb1 {[%clk 0:03:08.4]} 27... Rfa8 {[%clk
0:03:25.9]} 28. Rdd7 {[%clk 0:03:03.5]} 28... Ra1+ {[%clk 0:03:15.6]} 29. Kb2
{[%clk 0:03:00.4]} 29... R8a2+ {[%clk 0:03:14.5]} 30. Kc3 {[%clk 0:02:59.2]}
30... Ra3+ {[%clk 0:03:10.9]} 31. Kd2 {[%clk 0:02:58]} 31... Rh1 {[%clk
0:02:50.6]} 32. Rxg7+ {[%clk 0:02:52.2]} 32... Kf8 {[%clk 0:02:49.7]} 33. Rbf7+
{[%clk 0:02:47.4]} 33... Bxf7 {[%clk 0:02:47.8]} 34. Bxf6 {[%clk 0:02:44.6]}
34... Rxh2 {[%clk 0:02:35.1]} 35. Bxe5 {[%clk 0:02:32.2]} 35... Ra6 {[%clk
0:02:25.7]} 36. Rg4 {[%clk 0:02:17.5]} 36... Rhh6 {[%clk 0:02:20.2]} 37. Bg7+
{[%clk 0:02:12.4]} 37... Ke8 {[%clk 0:02:17]} 38. Bxh6 {[%clk 0:02:08.6]} 38...
Rxh6 {[%clk 0:02:16.9]} 39. Rg7 {[%clk 0:02:05.7]} 39... Bg6 {[%clk 0:02:13.7]}
40. Kc3 {[%clk 0:02:01]} 40... Rh5 {[%clk 0:02:09.1]} 41. Kb4 {[%clk 0:01:57.8]}
41... Kf8 {[%clk 0:02:05.7]} 42. Rb7 {[%clk 0:01:53.7]} 42... Bf7 {[%clk
0:01:58.5]} 43. Rxb5 {[%clk 0:01:50.6]} 43... Rxb5+ {[%clk 0:01:56]} 44. Kxb5
{[%clk 0:01:50.5]} 44... Ke7 {[%clk 0:01:45.2]} 45. Kc6 {[%clk 0:01:44.9]} 45...
Ke6 {[%clk 0:01:44.2]} 46. c4 {[%clk 0:01:41.5]} 46... Ke5 {[%clk 0:01:43.4]}
47. c5 {[%clk 0:01:40]} 47... Bd5+ {[%clk 0:01:41.6]} 48. Kb6 {[%clk 0:01:36.1]}
48... Kf4 {[%clk 0:01:39.3]} 49. c6 {[%clk 0:01:31.9]} 49... Kg3 {[%clk
0:01:37.4]} 50. c7 {[%clk 0:01:27.6]} 50... Be6 {[%clk 0:01:36.5]} 51. Kb7
{[%clk 0:01:26.1]} 51... Kxg2 {[%clk 0:01:33]} 52. c8=Q {[%clk 0:01:24.4]} 52...
Bxc8+ {[%clk 0:01:31.8]} 53. Kxc8 {[%clk 0:01:24.3]} 53... Kxf3 {[%clk
0:01:31.3]} 54. Kd7 {[%clk 0:01:23.1]} 54... h5 {[%clk 0:01:31.2]} 55. Ke6
{[%clk 0:01:22.3]} 55... h4 {[%clk 0:01:31.1]} 56. Kf5 {[%clk 0:01:21.8]} 56...
h3 {[%clk 0:01:31]} 0-1

[Event "Live Chess"]
[Site "Chess.com"]
[Date "2023.05.20"]
[Round "-"]
[White "mattihelenius2"]
[Black "Horseymobile"]
[Result "0-1"]
[WhiteElo "450"]
[BlackElo "1236"]
[TimeControl "300"]
[EndTime "11:03:36 PDT"]
[Termination "Horseymobile won by resignation"]

1. d4 {[%clk 0:04:57.2]} 1... Nf6 {[%clk 0:04:56.8]} 2. c4 {[%clk 0:04:56.1]}
2... g6 {[%clk 0:04:56.2]} 3. e3 {[%clk 0:04:54.8]} 3... Bg7 {[%clk 0:04:55.7]}
4. Qf3 {[%clk 0:04:48.1]} 4... O-O {[%clk 0:04:47.7]} 5. Nd2 {[%clk 0:04:47.1]}
5... Nc6 {[%clk 0:04:45.5]} 6. b3 {[%clk 0:04:45.6]} 6... d6 {[%clk 0:04:41.8]}
7. Ne4 {[%clk 0:04:36.4]} 7... Bg4 {[%clk 0:04:33.5]} 8. Qf4 {[%clk 0:04:29.2]}
8... Nxe4 {[%clk 0:04:24]} 9. Qxe4 {[%clk 0:04:19.1]} 9... Bf5 {[%clk
0:04:20.4]} 10. Qf3 {[%clk 0:04:11.5]} 10... e5 {[%clk 0:04:13.7]} 11. d5 {[%clk
0:04:01]} 11... e4 {[%clk 0:04:11.4]} 12. Qf4 {[%clk 0:03:56.3]} 12... Bxa1
{[%clk 0:04:09.5]} 13. f3 {[%clk 0:03:45.7]} 13... Be5 {[%clk 0:04:06.2]} 14.
fxe4 {[%clk 0:03:44.3]} 14... Bxf4 {[%clk 0:04:05.2]} 15. exf4 {[%clk
0:03:43.1]} 0-1

[Event "Live Chess"]
[Site "Chess.com"]
[Date "2023.05.20"]
[Round "-"]
[White "GEMdzq"]
[Black "Salpingidis"]
[Result "1/2-1/2"]
[WhiteElo "2201"]
[BlackElo "2308"]
[TimeControl "300"]
[EndTime "11:03:41 PDT"]
[Termination "Game drawn by repetition"]

1. e4 {[%clk 0:04:58.2]} 1... e6 {[%clk 0:04:56.4]} 2. d4 {[%clk 0:04:57]} 2...
d5 {[%clk 0:04:55.8]} 3. Nc3 {[%clk 0:04:56.4]} 3... dxe4 {[%clk 0:04:55.1]} 4.
Nxe4 {[%clk 0:04:55.3]} 4... Nd7 {[%clk 0:04:55]} 5. Nf3 {[%clk 0:04:53.9]} 5...
Ngf6 {[%clk 0:04:54.9]} 6. Nxf6+ {[%clk 0:04:51.1]} 6... Nxf6 {[%clk 0:04:53.3]}
7. Bd3 {[%clk 0:04:50.7]} 7... Be7 {[%clk 0:04:52.4]} 8. Bg5 {[%clk 0:04:50]}
8... O-O {[%clk 0:04:51.6]} 9. Bxf6 {[%clk 0:04:46.8]} 9... Bxf6 {[%clk
0:04:50.4]} 10. O-O {[%clk 0:04:46.6]} 10... b6 {[%clk 0:04:48.6]} 11. Qe2
{[%clk 0:04:43.1]} 11... Bb7 {[%clk 0:04:47.2]} 12. c3 {[%clk 0:04:41.8]} 12...
c5 {[%clk 0:04:34.1]} 13. Rad1 {[%clk 0:04:33.1]} 13... Qc7 {[%clk 0:04:32.1]}
14. Be4 {[%clk 0:04:29.1]} 14... cxd4 {[%clk 0:04:29.2]} 15. Nxd4 {[%clk
0:04:23]} 15... Bxe4 {[%clk 0:04:19.4]} 16. Qxe4 {[%clk 0:04:21.9]} 16... Bxd4
{[%clk 0:04:18.2]} 17. Rxd4 {[%clk 0:04:19.8]} 17... Rad8 {[%clk 0:04:17.8]} 18.
Rfd1 {[%clk 0:04:18.4]} 18... h6 {[%clk 0:04:07.2]} 19. Qd3 {[%clk 0:04:14.3]}
19... Rxd4 {[%clk 0:04:05.3]} 20. Qxd4 {[%clk 0:04:14.2]} 20... Rc8 {[%clk
0:04:01.9]} 21. h3 {[%clk 0:04:05.2]} 21... Kf8 {[%clk 0:03:56.8]} 22. Qd7
{[%clk 0:04:01.7]} 22... a6 {[%clk 0:03:41.1]} 23. Rd6 {[%clk 0:03:44.2]} 23...
Qxd7 {[%clk 0:03:33.2]} 24. Rxd7 {[%clk 0:03:44.1]} 24... Rc6 {[%clk 0:03:32.6]}
25. Kf1 {[%clk 0:03:33]} 25... Ke8 {[%clk 0:03:31.8]} 26. Ra7 {[%clk 0:03:32]}
26... b5 {[%clk 0:03:29.1]} 27. Ke2 {[%clk 0:03:31]} 27... Rd6 {[%clk
0:03:24.8]} 28. Rc7 {[%clk 0:03:24.7]} 28... g6 {[%clk 0:03:11.3]} 29. g4 {[%clk
0:03:18.7]} 29... Kf8 {[%clk 0:03:10.3]} 30. h4 {[%clk 0:03:05.7]} 30... g5
{[%clk 0:03:06.8]} 31. h5 {[%clk 0:02:57.6]} 31... Kg7 {[%clk 0:03:05.4]} 32.
Ke3 {[%clk 0:02:54.8]} 32... Kf6 {[%clk 0:03:03.2]} 33. f3 {[%clk 0:02:51]}
33... e5 {[%clk 0:03:01.9]} 34. Ra7 {[%clk 0:02:49]} 34... Ke6 {[%clk
0:02:58.2]} 35. b3 {[%clk 0:02:44.7]} 35... f5 {[%clk 0:02:47.9]} 36. c4 {[%clk
0:02:41.9]} 36... bxc4 {[%clk 0:02:41.7]} 37. bxc4 {[%clk 0:02:40.7]} 37... fxg4
{[%clk 0:02:41.3]} 38. fxg4 {[%clk 0:02:39.5]} 38... Rc6 {[%clk 0:02:40.8]} 39.
Kd3 {[%clk 0:02:38.1]} 39... e4+ {[%clk 0:02:30.4]} 40. Kd4 {[%clk 0:02:24.9]}
40... e3 {[%clk 0:02:25]} 41. Ra8 {[%clk 0:02:24.1]} 41... Kf7 {[%clk
0:02:14.3]} 42. Kxe3 {[%clk 0:02:15.7]} 42... Rxc4 {[%clk 0:02:12.8]} 43. Ra7+
{[%clk 0:02:08.3]} 43... Kg8 {[%clk 0:02:01.3]} 44. Rxa6 {[%clk 0:02:06.1]}
44... Rxg4 {[%clk 0:02:00.2]} 45. Rxh6 {[%clk 0:02:01.5]} 45... Ra4 {[%clk
0:01:57.6]} 46. Rg6+ {[%clk 0:01:54.8]} 46... Kh7 {[%clk 0:01:56.6]} 47. Rxg5
{[%clk 0:01:53.6]} 47... Rxa2 {[%clk 0:01:55.8]} 48. Rb5 {[%clk 0:01:48.8]}
48... Ra4 {[%clk 0:01:51.3]} 49. Kf3 {[%clk 0:01:47.7]} 49... Kh6 {[%clk
0:01:50.3]} 50. Kg3 {[%clk 0:01:46.9]} 50... Rc4 {[%clk 0:01:49.4]} 51. Kh3
{[%clk 0:01:45.9]} 51... Ra4 {[%clk 0:01:48.4]} 52. Kg3 {[%clk 0:01:45.4]} 52...
Rc4 {[%clk 0:01:47.6]} 53. Kh3 {[%clk 0:01:43.2]} 53... Ra4 {[%clk 0:01:47.5]}
54. Kg3 {[%clk 0:01:42.1]} 1/2-1/2

[Event "Live Chess"]
[Site "Chess.com"]
[Date "2023.05.20"]
[Round "-"]
[White "PantherCal"]
[Black "alexlines8"]
[Result "0-1"]
[WhiteElo "1827"]
[BlackElo "1254"]
[TimeControl "300"]
[EndTime "11:03:41 PDT"]
[Termination "alexlines8 won by checkmate"]

1. e4 {[%clk 0:04:57.8]} 1... c6 {[%clk 0:04:58.4]} 2. d4 {[%clk 0:04:56.7]}
2... d5 {[%clk 0:04:56.3]} 3. exd5 {[%clk 0:04:56.6]} 3... cxd5 {[%clk
0:04:54.4]} 4. Bd3 {[%clk 0:04:54.7]} 4... Nc6 {[%clk 0:04:51.6]} 5. Nf3 {[%clk
0:04:54.3]} 5... Bg4 {[%clk 0:04:47.2]} 6. c3 {[%clk 0:04:54.2]} 6... Nf6 {[%clk
0:04:42.8]} 7. Bf4 {[%clk 0:04:53]} 7... e6 {[%clk 0:04:38.8]} 8. O-O {[%clk
0:04:51.8]} 8... Bd6 {[%clk 0:04:36]} 9. Bg3 {[%clk 0:04:49.4]} 9... Bxg3 {[%clk
0:04:31.8]} 10. hxg3 {[%clk 0:04:49.3]} 10... Qd7 {[%clk 0:04:20]} 11. Nbd2
{[%clk 0:04:44.5]} 11... Qc7 {[%clk 0:03:21.8]} 12. Qc2 {[%clk 0:04:39.6]} 12...
O-O-O {[%clk 0:03:13]} 13. a4 {[%clk 0:04:35.9]} 13... h5 {[%clk 0:03:08.5]} 14.
b4 {[%clk 0:04:32.4]} 14... h4 {[%clk 0:03:04.9]} 15. Nxh4 {[%clk 0:04:29.7]}
15... g5 {[%clk 0:02:57.2]} 16. b5 {[%clk 0:04:21.8]} 16... gxh4 {[%clk
0:02:50.7]} 17. bxc6 {[%clk 0:04:20.3]} 17... hxg3 {[%clk 0:02:47.4]} 18. cxb7+
{[%clk 0:04:19.3]} 18... Kb8 {[%clk 0:02:42.1]} 19. c4 {[%clk 0:03:51.1]} 19...
gxf2+ {[%clk 0:02:33.1]} 20. Kxf2 {[%clk 0:03:47.8]} 20... Qf4+ {[%clk
0:02:29.1]} 21. Nf3 {[%clk 0:03:45.7]} 21... Bxf3 {[%clk 0:02:10.4]} 22. gxf3
{[%clk 0:03:45.6]} 22... Rh2+ {[%clk 0:02:05.6]} 23. Ke1 {[%clk 0:03:42.6]}
23... Rxc2 {[%clk 0:02:02.4]} 24. Bxc2 {[%clk 0:03:42.5]} 24... Qe3+ {[%clk
0:01:54.6]} 25. Kd1 {[%clk 0:03:41.5]} 25... Qxd4+ {[%clk 0:01:49.1]} 26. Ke2
{[%clk 0:03:37.3]} 26... Qxc4+ {[%clk 0:01:42.4]} 27. Bd3 {[%clk 0:03:36.2]}
27... Qd4 {[%clk 0:01:38.5]} 28. Rac1 {[%clk 0:03:19.1]} 28... Rh8 {[%clk
0:01:30.6]} 29. Rh1 {[%clk 0:03:14]} 29... Qb2+ {[%clk 0:01:22.1]} 30. Ke3
{[%clk 0:03:11.2]} 30... d4+ {[%clk 0:01:19.2]} 31. Kf4 {[%clk 0:03:09.4]} 31...
Qd2+ {[%clk 0:01:15.5]} 32. Ke5 {[%clk 0:03:06.6]} 32... Qg5+ {[%clk 0:01:12.3]}
33. Kd6 {[%clk 0:03:04.5]} 33... Qd5+ {[%clk 0:01:05.9]} 34. Ke7 {[%clk
0:03:02.1]} 34... Qd8+ {[%clk 0:00:56.7]} 35. Kxf7 {[%clk 0:03:00.4]} 35... Rf8+
{[%clk 0:00:50]} 36. Kxe6 {[%clk 0:02:58.2]} 36... Qd5+ {[%clk 0:00:46.2]} 37.
Ke7 {[%clk 0:02:54.5]} 37... Rf7# {[%clk 0:00:45.2]} 0-1

[Event "Live Chess"]
[Site "Chess.com"]
[Date "2023.05.20"]
[Round "-"]
[White "EdenHazard8"]
[Black "GMHarry-youtube"]
[Result "1/2-1/2"]
[WhiteElo "2108"]
[BlackElo "2127"]
[TimeControl "300"]
[EndTime "11:03:43 PDT"]
[Termination "Game drawn by repetition"]

1. e4 {[%clk 0:04:57.9]} 1... c5 {[%clk 0:04:58.9]} 2. Nc3 {[%clk 0:04:53.1]}
2... d6 {[%clk 0:04:57.9]} 3. f4 {[%clk 0:04:51.5]} 3... Nf6 {[%clk 0:04:56.6]}
4. Nf3 {[%clk 0:04:50.8]} 4... Nc6 {[%clk 0:04:55.2]} 5. Bb5 {[%clk 0:04:50.2]}
5... Bd7 {[%clk 0:04:53.8]} 6. Bxc6 {[%clk 0:04:48.4]} 6... Bxc6 {[%clk
0:04:53.7]} 7. d3 {[%clk 0:04:47.5]} 7... g6 {[%clk 0:04:51.5]} 8. O-O {[%clk
0:04:47]} 8... Bg7 {[%clk 0:04:50.2]} 9. Qe1 {[%clk 0:04:46.7]} 9... e6 {[%clk
0:04:45.9]} 10. Qh4 {[%clk 0:04:45.5]} 10... Nd7 {[%clk 0:04:42.5]} 11. Qh3
{[%clk 0:04:31.4]} 11... b5 {[%clk 0:04:34.3]} 12. f5 {[%clk 0:04:28.3]} 12...
Qe7 {[%clk 0:04:15]} 13. Ng5 {[%clk 0:04:15.4]} 13... h6 {[%clk 0:04:07.2]} 14.
fxe6 {[%clk 0:04:12.5]} 14... hxg5 {[%clk 0:04:04.4]} 15. exd7+ {[%clk
0:04:08.7]} 15... Bxd7 {[%clk 0:04:03.7]} 16. Qf3 {[%clk 0:04:05.2]} 16... Bd4+
{[%clk 0:03:52.2]} 17. Be3 {[%clk 0:04:01.2]} 17... Bxe3+ {[%clk 0:03:51.4]} 18.
Qxe3 {[%clk 0:04:01.1]} 18... O-O-O {[%clk 0:03:50]} 19. Nd5 {[%clk 0:03:58.3]}
19... Qe5 {[%clk 0:03:48.5]} 20. g3 {[%clk 0:03:56.7]} 20... Rh3 {[%clk
0:03:40.6]} 21. Rxf7 {[%clk 0:03:46.4]} 21... Rdh8 {[%clk 0:03:37.2]} 22. Ne7+
{[%clk 0:03:25.6]} 22... Kd8 {[%clk 0:03:27.7]} 23. Nxg6 {[%clk 0:03:23.8]}
23... Qxb2 {[%clk 0:03:21.2]} 24. Qxg5+ {[%clk 0:03:21.7]} 24... Kc7 {[%clk
0:03:17.1]} 25. Raf1 {[%clk 0:03:18.1]} 25... Qxc2 {[%clk 0:03:11.6]} 26. R7f2
{[%clk 0:03:07]} 26... Qxd3 {[%clk 0:03:03.9]} 27. Nxh8 {[%clk 0:03:05.8]} 27...
Rxh8 {[%clk 0:03:02.3]} 28. Qg7 {[%clk 0:02:57.2]} 28... Re8 {[%clk 0:02:58.1]}
29. Rf7 {[%clk 0:02:53]} 29... Qe3+ {[%clk 0:02:46.9]} 30. R1f2 {[%clk
0:02:50.7]} 30... Qe1+ {[%clk 0:02:44.5]} 31. Rf1 {[%clk 0:02:48.5]} 31... Qe3+
{[%clk 0:02:43.1]} 32. R1f2 {[%clk 0:02:34.9]} 32... Qe1+ {[%clk 0:02:39]} 33.
Rf1 {[%clk 0:02:33.9]} 33... Qe3+ {[%clk 0:02:38]} 1/2-1/2

[Event "Live Chess"]
[Site "Chess.com"]
[Date "2023.05.20"]
[Round "-"]
[White "laki79"]
[Black "BogdanBeleiUkraine"]
[Result "1-0"]
[WhiteElo "2303"]
[BlackElo "1174"]
[TimeControl "300"]
[EndTime "11:03:47 PDT"]
[Termination "laki79 won by resignation"]

1. d4 {[%clk 0:04:56.5]} 1... d5 {[%clk 0:04:57.7]} 2. c4 {[%clk 0:04:55.1]}
2... Nf6 {[%clk 0:04:57.3]} 3. cxd5 {[%clk 0:04:53.6]} 3... Nxd5 {[%clk
0:04:55.8]} 4. e4 {[%clk 0:04:53.2]} 4... Nb6 {[%clk 0:04:53.3]} 5. Nc3 {[%clk
0:04:52.6]} 5... Nc6 {[%clk 0:04:46.5]} 6. Be3 {[%clk 0:04:50]} 6... Bd7 {[%clk
0:04:43.5]} 7. Nf3 {[%clk 0:04:46.9]} 7... e6 {[%clk 0:04:40]} 8. Be2 {[%clk
0:04:37.9]} 8... Bb4 {[%clk 0:04:38.1]} 9. O-O {[%clk 0:04:36]} 9... O-O {[%clk
0:04:33.3]} 10. Rc1 {[%clk 0:04:28.5]} 10... Qe7 {[%clk 0:04:21.3]} 11. a3
{[%clk 0:04:26.9]} 11... Bxc3 {[%clk 0:04:19.2]} 12. Rxc3 {[%clk 0:04:26.1]}
12... Rad8 {[%clk 0:04:08.5]} 13. Qc2 {[%clk 0:04:24.5]} 13... e5 {[%clk
0:03:59.3]} 14. d5 {[%clk 0:04:22.3]} 14... Nd4 {[%clk 0:03:56.5]} 15. Nxd4
{[%clk 0:04:19.6]} 15... exd4 {[%clk 0:03:55.7]} 16. Bxd4 {[%clk 0:04:18.7]}
16... c6 {[%clk 0:03:53.5]} 17. Bc5 {[%clk 0:04:13.9]} 1-0

[Event "Live Chess"]
[Site "Chess.com"]
[Date "2023.05.20"]
[Round "-"]
[White "luckywookie"]
[Black "1600x"]
[Result "0-1"]
[WhiteElo "729"]
[BlackElo "1565"]
[TimeControl "300"]
[EndTime "11:03:59 PDT"]
[Termination "1600x won by checkmate"]

1. e4 {[%clk 0:04:57.1]} 1... e5 {[%clk 0:04:53.3]} 2. Nc3 {[%clk 0:04:45.4]}
2... Nc6 {[%clk 0:04:49]} 3. d3 {[%clk 0:04:37.9]} 3... b6 {[%clk 0:04:45]} 4.
Nf3 {[%clk 0:04:32.1]} 4... Nf6 {[%clk 0:04:43.1]} 5. h3 {[%clk 0:04:28.5]} 5...
d5 {[%clk 0:04:40.3]} 6. Bg5 {[%clk 0:04:20.9]} 6... Bb4 {[%clk 0:04:37.5]} 7.
exd5 {[%clk 0:04:08.6]} 7... Ne7 {[%clk 0:04:35.7]} 8. Bxf6 {[%clk 0:03:54.3]}
8... gxf6 {[%clk 0:04:33.9]} 9. Be2 {[%clk 0:03:50.1]} 9... Nxd5 {[%clk
0:04:29.6]} 10. O-O {[%clk 0:03:47.5]} 10... Bxc3 {[%clk 0:04:27.5]} 11. bxc3
{[%clk 0:03:45.6]} 11... Nf4 {[%clk 0:04:25]} 12. d4 {[%clk 0:03:38.3]} 12...
Rg8 {[%clk 0:04:23]} 13. Bb5+ {[%clk 0:03:33.6]} 13... Bd7 {[%clk 0:04:21.4]}
14. a4 {[%clk 0:03:27.3]} 14... Bxb5 {[%clk 0:04:19.3]} 15. axb5 {[%clk
0:03:25.8]} 15... Rxg2+ {[%clk 0:04:16.5]} 16. Kh1 {[%clk 0:03:21.3]} 16... Qd7
{[%clk 0:04:14.3]} 17. dxe5 {[%clk 0:03:03.1]} 17... Qxh3+ {[%clk 0:04:00.7]}
18. Nh2 {[%clk 0:02:54.6]} 18... Qxh2# {[%clk 0:03:33.4]} 0-1